fUST/lending_fUST_20260511
["ID","MTS","AMOUNT","RATE_DAILY","PERIOD"]
[422017407,1778470252000,-823.0,0.00012893,2]
[422017409,1778470252000,-823.0,0.00012893,2]
[422017386,1778470252000,-163.021,0.00012879,2]
[422017408,1778470252000,-823.0,0.00012893,2]
[422017404,1778470252000,-823.0,0.00012893,2]
[422017393,1778470252000,-823.0,0.00012893,2]
[422017373,1778470252000,-522.18,0.00012876,2]
[422017391,1778470252000,-823.0,0.00012893,2]
[422017410,1778470252000,-823.0,0.00012893,2]
[422017369,1778470252000,-592.48,0.00012876,2]
[422017368,1778470252000,-1943.94,0.00012876,2]
[422017370,1778470252000,-536.63,0.00012876,2]
[422017371,1778470252000,-546.75,0.00012876,2]
[422017372,1778470252000,-702.27,0.00012876,2]
[422017374,1778470252000,-921.05,0.00012876,2]
[422017367,1778470252000,-9858.41,0.00012876,2]
[422017375,1778470252000,-1017.95,0.00012876,2]
[422017390,1778470252000,-823.0,0.00012893,2]
[422017378,1778470252000,-826.87,0.00012876,2]
[422017377,1778470252000,-1370.96,0.00012876,2]
[422017376,1778470252000,-618.17,0.00012876,2]
[422017381,1778470252000,-1037.64,0.00012876,2]
[422017379,1778470252000,-1798.51,0.00012876,2]
[422017382,1778470252000,-659.43,0.00012876,2]
[422017384,1778470252000,-891.13,0.00012876,2]
[422017385,1778470252000,-2114.11,0.00012876,2]
[422017387,1778470252000,-823.0,0.00012893,2]
[422017383,1778470252000,-2033.31,0.00012876,2]
[422017380,1778470252000,-500.0,0.00012876,2]
[422017411,1778470252000,-823.0,0.00012893,2]
[422017435,1778470252000,-823.0,0.00012893,2]
[422017418,1778470252000,-823.0,0.00012893,2]
[422017437,1778470252000,-548.0,0.00012893,2]
[422017439,1778470252000,-25390.84025364,0.000129,2]
[422017442,1778470252000,-350.32149811,0.000129,2]
[422017441,1778470252000,-8819.8619366,0.000129,2]
[422017440,1778470252000,-6332.39815017,0.000129,2]
[422017443,1778470252000,-575.9666368,0.000129,2]
[422017445,1778470252000,-12367.08041623,0.000129,2]
[422017448,1778470252000,-21456.45779353,0.000129,2]
[422017419,1778470252000,-823.0,0.00012893,2]
[422017436,1778470252000,-823.0,0.00012893,2]
[422017447,1778470252000,-21456.45779353,0.000129,2]
[422017450,1778470252000,-728.29813344,0.00012961,2]
[422017449,1778470252000,-21456.45779353,0.000129,2]
[422017452,1778470252000,-160.0,0.00012984,3]
[422017453,1778470252000,-160.59863356,0.00012984,5]
[422017451,1778470252000,-21456.45779353,0.00012976,2]
[422017454,1778470252000,-1000.0,0.0001299,2]
[422017456,1778470252000,-165.0,0.00013,2]
[422017455,1778470252000,-6856.7,0.00013,10]
[422017457,1778470252000,-95510.10200103,0.00013,2]
[422017444,1778470252000,-8177.13473921,0.000129,2]
[422017438,1778470252000,-61372.30581453,0.000129,2]
[422017446,1778470252000,-21456.45779356,0.000129,2]
[422017433,1778470252000,-806.0,0.00012893,2]
[422017434,1778470252000,-823.0,0.00012893,2]
[422017413,1778470252000,-823.0,0.00012893,2]
[422017412,1778470252000,-805.0,0.00012893,2]
[422017415,1778470252000,-823.0,0.00012893,2]
[422017416,1778470252000,-817.0,0.00012893,2]
[422017417,1778470252000,-823.0,0.00012893,2]
[422017421,1778470252000,-823.0,0.00012893,2]
[422017431,1778470252000,-823.0,0.00012893,2]
[422017432,1778470252000,-823.0,0.00012893,2]
[422017420,1778470252000,-823.0,0.00012893,2]
[422017426,1778470252000,-823.0,0.00012893,2]
[422017424,1778470252000,-823.0,0.00012893,2]
[422017427,1778470252000,-823.0,0.00012893,2]
[422017422,1778470252000,-823.0,0.00012893,2]
[422017425,1778470252000,-823.0,0.00012893,2]
[422017429,1778470252000,-823.0,0.00012893,2]
[422017423,1778470252000,-823.0,0.00012893,2]
[422017430,1778470252000,-823.0,0.00012893,2]
[422017414,1778470252000,-823.0,0.00012893,2]
[422017428,1778470252000,-823.0,0.00012893,2]
[422017460,1778470253000,-500.0,0.00011232,2]
[422017458,1778470253000,-201223.83143484,0.00013,2]
[422017459,1778470253000,-500.0,0.00010958,2]
[422017463,1778470253000,-483.90748233,0.00013,2]
[422017462,1778470253000,-9341.07543023,0.00013,2]
[422017464,1778470253000,-2168.57039479,0.00013,2]
[422017465,1778470253000,-81827.72928229,0.00013,2]
[422017461,1778470253000,-8118.56381127,0.00013,2]
[422017469,1778470489000,40424.88494564,0.0001917,120]
[422017472,1778471018000,6892.0,0.00019178,120]
[422017529,1778471432000,-300.0,7.801e-05,2]
[422017533,1778471432000,-1200.0,7.84e-05,2]
[422017541,1778471432000,-152.0,8.501e-05,7]
[422017527,1778471432000,-4755.76031369,7.685e-05,2]
[422017537,1778471432000,-152.0,8.495e-05,7]
[422017521,1778471432000,-1875.1494409,7.532e-05,2]
[422017523,1778471432000,-5000.0,7.608e-05,2]
[422017515,1778471432000,-2453.9105591,7.532e-05,2]
[422017513,1778471432000,-670.94,7.532e-05,2]
[422017542,1778471432000,-420.0,8.581e-05,2]
[422017525,1778471432000,-244.23968631,7.685e-05,2]
[422017539,1778471432000,-152.0,8.498e-05,7]
[422017531,1778471432000,-346.32224399,7.802e-05,2]
[422017584,1778471432000,-278.48998849,0.00010856,2]
[422017587,1778471432000,-395.16801753,0.00010856,2]
[422017580,1778471432000,-501.0,0.00010856,2]
[422017571,1778471432000,-1069.9607262,0.00010856,2]
[422017535,1778471432000,-152.0,8.495e-05,7]
[422017576,1778471432000,-291.60334952,0.00010856,2]
[422017574,1778471432000,-482.42864668,0.00010856,2]
[422017557,1778471432000,-152.0,0.00010845,7]
[422017554,1778471432000,-600.0,0.00010396,2]
[422017551,1778471432000,-160.0,0.00010175,2]
[422017549,1778471432000,-408.66024791,9.802e-05,2]
[422017545,1778471432000,-300.0,8.903e-05,21]
[422017560,1778471432000,-1.13261181,0.00010856,2]
[422017764,1778471441000,-1128.17371129,0.00010756,2]
[422017763,1778471441000,-1043.44113708,0.00010756,2]
[422017811,1778471442000,-1071.09333801,0.00010856,2]
[422017812,1778471442000,-377.69784998,0.00010856,2]
[422017813,1778471442000,-500.0,0.00010856,2]
[422017810,1778471442000,-1071.09333801,0.00010856,2]
[422017817,1778471442000,-477.35826393,0.00010856,2]
[422017828,1778471442000,-1071.09333801,0.00010856,2]
[422017808,1778471442000,-1071.09333801,0.00010856,2]
[422017815,1778471442000,-500.0,0.00010856,2]
[422017801,1778471442000,-1071.09333801,0.00010856,2]
[422017804,1778471442000,-1071.09333801,0.00010856,2]
[422017807,1778471442000,-1071.09333801,0.00010856,2]
[422017798,1778471442000,-11380.38366663,0.00010756,2]
[422017806,1778471442000,-1071.09333801,0.00010856,2]
[422017803,1778471442000,-1071.09333801,0.00010856,2]
[422017805,1778471442000,-1071.09333801,0.00010856,2]
[422017800,1778471442000,-675.92532048,0.00010856,2]
[422017809,1778471442000,-1071.09333801,0.00010856,2]
[422017785,1778471442000,-489.25140107,0.00010756,2]
[422017783,1778471442000,-985.41048548,0.00010756,2]
[422017802,1778471442000,-1071.09333801,0.00010856,2]
[422017822,1778471442000,-1071.09333801,0.00010856,2]
[422017824,1778471442000,-1071.09333801,0.00010856,2]
[422017846,1778471442000,-160.0,0.00010916,2]
[422017849,1778471442000,-500.0,0.00010958,2]
[422017847,1778471442000,-161.621689,0.00010916,2]
[422017848,1778471442000,-1678.7948,0.00010958,2]
[422017844,1778471442000,-160.0,0.00010916,2]
[422017820,1778471442000,-1071.09333801,0.00010856,2]
[422017845,1778471442000,-160.0,0.00010916,2]
[422017843,1778471442000,-201.4347134,0.00010858,2]
[422017836,1778471442000,-1142.49956054,0.00010856,2]
[422017839,1778471442000,-19832.68500251,0.00010857,2]
[422017838,1778471442000,-1142.49956054,0.00010856,2]
[422017835,1778471442000,-1142.49956054,0.00010856,2]
[422017840,1778471442000,-16120.28039086,0.00010857,2]
[422017833,1778471442000,-1142.49956054,0.00010856,2]
[422017830,1778471442000,-1071.09333801,0.00010856,2]
[422017842,1778471442000,-257638.76458502,0.00010857,2]
[422017832,1778471442000,-1142.49956054,0.00010856,2]
[422017834,1778471442000,-1142.49956054,0.00010856,2]
[422017841,1778471442000,-2413.05868585,0.00010857,2]
[422017831,1778471442000,-1142.49956054,0.00010856,2]
[422017826,1778471442000,-1071.09333801,0.00010856,2]
[422017837,1778471442000,-1142.49956054,0.00010856,2]
[422017872,1778471443000,-500.0,0.00010958,2]
[422017862,1778471443000,-500.0,0.00010958,2]
[422017871,1778471443000,-500.0,0.00010958,2]
[422017873,1778471443000,-501.70919742,0.00010958,2]
[422017876,1778471443000,-500.0,0.00010958,2]
[422017870,1778471443000,-621.25884186,0.00010958,2]
[422017875,1778471443000,-303.32,0.00010958,2]
[422017886,1778471443000,-502.78387423,0.00010958,2]
[422017884,1778471443000,-501.54310244,0.00010958,2]
[422017880,1778471443000,-501.99449915,0.00010958,2]
[422017882,1778471443000,-502.37039336,0.00010958,2]
[422017874,1778471443000,-500.0,0.00010958,2]
[422017869,1778471443000,-500.0,0.00010958,2]
[422017885,1778471443000,-500.0,0.00010958,2]
[422017866,1778471443000,-500.0,0.00010958,2]
[422017867,1778471443000,-500.0,0.00010958,2]
[422017868,1778471443000,-500.0,0.00010958,2]
[422017864,1778471443000,-500.0,0.00010958,2]
[422017859,1778471443000,-500.0,0.00010958,2]
[422017858,1778471443000,-500.0,0.00010958,2]
[422017856,1778471443000,-500.0,0.00010958,2]
[422017857,1778471443000,-500.0,0.00010958,2]
[422017854,1778471443000,-218.13350394,0.00010958,2]
[422017855,1778471443000,-500.0,0.00010958,2]
[422017852,1778471443000,-500.0,0.00010958,2]
[422017851,1778471443000,-500.0,0.00010958,2]
[422017861,1778471443000,-500.0,0.00010958,2]
[422017878,1778471443000,-356.58,0.00010958,2]
[422017888,1778471443000,-502.16819952,0.00010958,2]
[422017881,1778471443000,-500.0,0.00010958,2]
[422017939,1778471443000,-382.91828592,0.00010958,2]
[422017938,1778471443000,-407.64,0.00010958,2]
[422017920,1778471443000,-500.0,0.00010958,2]
[422017919,1778471443000,-500.0,0.00010958,2]
[422017912,1778471443000,-500.0,0.00010958,2]
[422017922,1778471443000,-498.03639489,0.00010958,2]
[422017923,1778471443000,-500.0,0.00010958,2]
[422017916,1778471443000,-500.0,0.00010958,2]
[422017921,1778471443000,-500.0,0.00010958,2]
[422017918,1778471443000,-672.13,0.00010958,2]
[422017914,1778471443000,-500.0,0.00010958,2]
[422017898,1778471443000,-501.1123311,0.00010958,2]
[422017896,1778471443000,-501.25363648,0.00010958,2]
[422017924,1778471443000,-139.588954,0.00010958,2]
[422017891,1778471443000,-500.0,0.00010958,2]
[422017887,1778471443000,-501.86339149,0.00010958,2]
[422017883,1778471443000,-501.70672417,0.00010958,2]
[422017892,1778471443000,-501.44971015,0.00010958,2]
[422017900,1778471443000,-502.22333206,0.00010958,2]
[422017902,1778471443000,-500.0,0.00010958,2]
[422017889,1778471443000,-502.04347098,0.00010958,2]
[422017890,1778471443000,-500.0,0.00010958,2]
[422017904,1778471443000,-500.0,0.00010958,2]
[422017894,1778471443000,-502.32668783,0.00010958,2]
[422017908,1778471443000,-420.93350562,0.00010958,2]
[422017910,1778471443000,-502.30593295,0.00010958,2]
[422017906,1778471443000,-500.0,0.00010958,2]
[422017945,1778471444000,-500.0,0.00010958,2]
[422017947,1778471444000,-500.0,0.00010958,2]
[422017940,1778471444000,-422.88276008,0.00010958,2]
[422017941,1778471444000,-500.0,0.00010958,2]
[422017944,1778471444000,-500.0,0.00010958,2]
[422017946,1778471444000,-500.0,0.00010958,2]
[422017942,1778471444000,-931.48,0.00010958,2]
[422017948,1778471444000,-500.0,0.00010958,2]
[422017943,1778471444000,-372.27839268,0.00010958,2]
[422017957,1778471444000,-500.0,0.00010958,2]
[422017949,1778471444000,-6649.85,0.00010958,2]
[422017950,1778471444000,-909.6,0.00010958,2]
[422017951,1778471444000,-347.3408974,0.00010958,2]
[422017953,1778471444000,-602.05999792,0.00010958,2]
[422017952,1778471444000,-986.6091026,0.00010958,2]
[422017956,1778471444000,-500.0,0.00010958,2]
[422017955,1778471444000,-500.0,0.00010958,2]
[422017954,1778471444000,-793.90000208,0.00010958,2]
[422017958,1778471444000,-406.09999852,0.00010958,2]
[422018030,1778471447000,-2594.48434591,0.00010747,2]
[422018135,1778472641000,-389.9284953,9.059e-05,2]
[422018146,1778472645000,-350.94111515,9.105e-05,2]
[422018149,1778472645000,-3934.49189331,9.243e-05,2]
[422018147,1778472645000,-5000.0,9.151e-05,2]
[422018151,1778472645000,-300.0,0.00010269,2]
[422018150,1778472645000,-300.0,9.335e-05,2]
[422018148,1778472645000,-1200.0,9.242e-05,2]
[422018152,1778472645000,-22478.75863148,0.00010557,2]
[422018153,1778472645000,-1002.99,0.0001063,2]
[422018145,1778472645000,-4610.0715047,9.059e-05,2]
[422018155,1778472645000,-576.83151597,0.00010656,2]
[422018154,1778472645000,-500.0,0.00010656,2]
[422018157,1778472645000,-9881.11499437,0.00010657,2]
[422018158,1778472645000,-543.38155845,0.00010657,2]
[422018160,1778472645000,-585.97660249,0.00010657,2]
[422018162,1778472645000,-424.17702131,0.00010657,2]
[422018163,1778472645000,-628.1247688,0.00010657,2]
[422018161,1778472645000,-7150.82932665,0.00010657,2]
[422018164,1778472645000,-388.39333647,0.00010657,2]
[422018159,1778472645000,-6634.0094616,0.00010657,2]
[422018165,1778472645000,-642.99355765,0.00010657,2]
[422018166,1778472645000,-541.65,0.00010657,2]
[422018156,1778472645000,-38875.28340685,0.00010657,2]
[422018172,1778472647000,-45268.54686121,0.00010657,2]
[422018174,1778472647000,-704.45640802,0.00010657,2]
[422018173,1778472647000,-9758.58130913,0.00010657,2]
[422018175,1778472647000,-7515.95576526,0.00010657,2]
[422018177,1778472647000,-160.0,0.00010905,2]
[422018181,1778472647000,-1483.85348895,0.00010958,2]
[422018179,1778472647000,-160.0,0.00010905,2]
[422018176,1778472647000,-160.0,0.00010905,2]
[422018180,1778472647000,-3192.4894008,0.00010942,2]
[422018182,1778472647000,-194.94131105,0.00010958,2]
[422018183,1778472647000,-346.09118247,0.00010958,2]
[422018178,1778472647000,-161.621689,0.00010905,2]
[422018242,1778473831000,-305.668248,9.228e-05,2]
[422018239,1778473831000,-3312.17497517,9.228e-05,2]
[422018244,1778473831000,-184.3565779,9.465e-05,2]
[422018241,1778473831000,-397.91517571,9.228e-05,2]
[422018238,1778473831000,-5000.0,9.136e-05,2]
[422018245,1778473831000,-101.86336323,9.558e-05,2]
[422018257,1778473831000,-1153.64042615,0.00010552,2]
[422018246,1778473831000,-250.93419497,9.558e-05,2]
[422018253,1778473831000,-701.41696104,0.00010501,2]
[422018251,1778473831000,-1000.0,0.0001,2]
[422018243,1778473831000,-984.24160112,9.228e-05,2]
[422018249,1778473831000,-550.0,9.999e-05,2]
[422018248,1778473831000,-422.80914884,9.976e-05,2]
[422018255,1778473831000,-300.0,0.00010551,2]
[422018294,1778473838000,-5890.15582355,0.00010552,2]
[422018293,1778473838000,-151.0,0.00010475,2]
[422018295,1778473838000,-158.9446881,0.00010552,2]
[422018296,1778473838000,-151.0,0.00010689,2]
[422018298,1778473838000,-168.69292916,0.00010858,2]
[422018297,1778473838000,-151.0,0.00010689,2]
[422018299,1778473838000,-160.0,0.000109,2]
[422018305,1778473838000,-500.0,0.00010958,2]
[422018304,1778473838000,-500.0,0.00010958,2]
[422018306,1778473838000,-500.0,0.00010958,2]
[422018303,1778473838000,-152.54229009,0.00010958,2]
[422018301,1778473838000,-161.621689,0.000109,2]
[422018302,1778473838000,-1412.5588,0.00010958,2]
[422018307,1778473838000,-156.40528926,0.00010958,2]
[422018300,1778473838000,-160.0,0.000109,2]
[422018606,1778475040000,-354.50900887,9.628e-05,2]
[422018605,1778475040000,-5000.0,9.484e-05,2]
[422018603,1778475040000,-3597.25723292,9.389e-05,2]
[422018610,1778475040000,-163.02422954,0.00010603,2]
[422018609,1778475040000,-121281.9,0.00010595,2]
[422018608,1778475040000,-160.0,0.000105,2]
[422018611,1778475040000,-152.0,0.0001081,2]
[422018607,1778475040000,-1922.3733506,0.00010355,2]
[422018663,1778475041000,-500.0,0.00010958,2]
[422018664,1778475041000,-500.0,0.00010958,2]
[422018661,1778475041000,-500.0,0.00010958,2]
[422018658,1778475041000,-500.0,0.00010958,2]
[422018660,1778475041000,-500.0,0.00010958,2]
[422018655,1778475041000,-500.0,0.00010958,2]
[422018646,1778475041000,-1409.15099501,0.00010957,2]
[422018647,1778475041000,-1409.15099501,0.00010957,2]
[422018648,1778475041000,-1263.1018,0.00010958,2]
[422018645,1778475041000,-1409.15099501,0.00010957,2]
[422018639,1778475041000,-1409.15099501,0.00010957,2]
[422018665,1778475041000,-500.0,0.00010958,2]
[422018649,1778475041000,-500.0,0.00010958,2]
[422018667,1778475041000,-500.0,0.00010958,2]
[422018675,1778475041000,-500.0,0.00010958,2]
[422018656,1778475041000,-500.0,0.00010958,2]
[422018669,1778475041000,-500.0,0.00010958,2]
[422018681,1778475041000,-500.0,0.00010958,2]
[422018671,1778475041000,-500.0,0.00010958,2]
[422018682,1778475041000,-500.0,0.00010958,2]
[422018674,1778475041000,-500.0,0.00010958,2]
[422018672,1778475041000,-500.0,0.00010958,2]
[422018670,1778475041000,-461.44197729,0.00010958,2]
[422018673,1778475041000,-500.0,0.00010958,2]
[422018680,1778475041000,-500.0,0.00010958,2]
[422018677,1778475041000,-500.0,0.00010958,2]
[422018678,1778475041000,-500.0,0.00010958,2]
[422018642,1778475041000,-1409.15099501,0.00010957,2]
[422018668,1778475041000,-500.0,0.00010958,2]
[422018644,1778475041000,-1409.15099501,0.00010957,2]
[422018627,1778475041000,-1324.84281581,0.00010957,2]
[422018650,1778475041000,-500.0,0.00010958,2]
[422018614,1778475041000,-152.0,0.00010842,7]
[422018613,1778475041000,-152.0,0.00010842,7]
[422018619,1778475041000,-161.621689,0.00010898,2]
[422018618,1778475041000,-160.0,0.00010898,2]
[422018620,1778475041000,-1324.84281581,0.00010957,2]
[422018616,1778475041000,-152.0,0.00010845,7]
[422018617,1778475041000,-160.0,0.00010898,2]
[422018623,1778475041000,-1324.84281581,0.00010957,2]
[422018621,1778475041000,-507.20099047,0.00010957,2]
[422018624,1778475041000,-1324.84281581,0.00010957,2]
[422018625,1778475041000,-1324.84281581,0.00010957,2]
[422018622,1778475041000,-1324.84281581,0.00010957,2]
[422018626,1778475041000,-1324.84281581,0.00010957,2]
[422018653,1778475041000,-500.0,0.00010958,2]
[422018629,1778475041000,-1324.84281581,0.00010957,2]
[422018676,1778475041000,-500.0,0.00010958,2]
[422018631,1778475041000,-1324.84281581,0.00010957,2]
[422018630,1778475041000,-1324.84281581,0.00010957,2]
[422018632,1778475041000,-1324.84281581,0.00010957,2]
[422018634,1778475041000,-1324.84281581,0.00010957,2]
[422018635,1778475041000,-1409.15099501,0.00010957,2]
[422018638,1778475041000,-1409.15099501,0.00010957,2]
[422018637,1778475041000,-1409.15099501,0.00010957,2]
[422018636,1778475041000,-1409.15099501,0.00010957,2]
[422018640,1778475041000,-1409.15099501,0.00010957,2]
[422018652,1778475041000,-500.0,0.00010958,2]
[422018654,1778475041000,-500.0,0.00010958,2]
[422018651,1778475041000,-500.0,0.00010958,2]
[422018628,1778475041000,-1324.84281581,0.00010957,2]
[422018679,1778475041000,-500.0,0.00010958,2]
[422018666,1778475041000,-500.0,0.00010958,2]
[422018686,1778475041000,-500.0,0.00010958,2]
[422018714,1778475041000,-500.0,0.00010958,2]
[422018715,1778475041000,-500.0,0.00010958,2]
[422018718,1778475041000,-500.0,0.00010958,2]
[422018717,1778475041000,-500.0,0.00010958,2]
[422018716,1778475041000,-500.0,0.00010958,2]
[422018724,1778475041000,-500.0,0.00010958,2]
[422018723,1778475041000,-500.0,0.00010958,2]
[422018734,1778475041000,-500.0,0.00010958,2]
[422018725,1778475041000,-500.0,0.00010958,2]
[422018728,1778475041000,-500.0,0.00010958,2]
[422018727,1778475041000,-502.39735708,0.00010958,2]
[422018726,1778475041000,-500.0,0.00010958,2]
[422018729,1778475041000,-500.0,0.00010958,2]
[422018733,1778475041000,-500.0,0.00010958,2]
[422018732,1778475041000,-1418.15,0.00010958,2]
[422018730,1778475041000,-500.0,0.00010958,2]
[422018731,1778475041000,-1207.65,0.00010958,2]
[422018735,1778475041000,-500.0,0.00010958,2]
[422018739,1778475041000,-500.0,0.00010958,2]
[422018746,1778475041000,-211.21716126,0.00010958,2]
[422018736,1778475041000,-500.0,0.00010958,2]
[422018741,1778475041000,-500.0,0.00010958,2]
[422018737,1778475041000,-500.0,0.00010958,2]
[422018740,1778475041000,-550.08,0.00010958,2]
[422018738,1778475041000,-500.0,0.00010958,2]
[422018742,1778475041000,-500.0,0.00010958,2]
[422018744,1778475041000,-532.25599982,0.00010958,2]
[422018683,1778475041000,-581.07,0.00010958,2]
[422018743,1778475041000,-500.0,0.00010958,2]
[422018720,1778475041000,-500.0,0.00010958,2]
[422018719,1778475041000,-346.33909023,0.00010958,2]
[422018745,1778475041000,-745.68,0.00010958,2]
[422018712,1778475041000,-500.0,0.00010958,2]
[422018713,1778475041000,-500.0,0.00010958,2]
[422018685,1778475041000,-500.0,0.00010958,2]
[422018684,1778475041000,-500.0,0.00010958,2]
[422018695,1778475041000,-502.40648648,0.00010958,2]
[422018692,1778475041000,-500.0,0.00010958,2]
[422018690,1778475041000,-500.0,0.00010958,2]
[422018688,1778475041000,-524.23,0.00010958,2]
[422018689,1778475041000,-500.0,0.00010958,2]
[422018691,1778475041000,-412.88021733,0.00010958,2]
[422018687,1778475041000,-500.0,0.00010958,2]
[422018693,1778475041000,-500.0,0.00010958,2]
[422018697,1778475041000,-501.46496764,0.00010958,2]
[422018705,1778475041000,-614.29137488,0.00010958,2]
[422018708,1778475041000,-164.72209891,0.00010958,2]
[422018709,1778475041000,-500.0,0.00010958,2]
[422018694,1778475041000,-501.90645368,0.00010958,2]
[422018696,1778475041000,-502.15481695,0.00010958,2]
[422018710,1778475041000,-500.0,0.00010958,2]
[422018722,1778475041000,-500.0,0.00010958,2]
[422018721,1778475041000,-500.0,0.00010958,2]
[422018711,1778475041000,-505.29728666,0.00010958,2]
[422018700,1778475041000,-500.0,0.00010958,2]
[422018704,1778475041000,-500.0,0.00010958,2]
[422018698,1778475041000,-501.2808006,0.00010958,2]
[422018703,1778475041000,-500.0,0.00010958,2]
[422018702,1778475041000,-500.0,0.00010958,2]
[422018706,1778475041000,-204.5246928,0.00010958,2]
[422018699,1778475041000,-618.71154885,0.00010958,2]
[422018707,1778475041000,-500.0,0.00010958,2]
[422018701,1778475041000,-502.37271605,0.00010958,2]
[422018781,1778475042000,-500.0,0.00010958,2]
[422018789,1778475042000,-500.0,0.00010958,2]
[422018790,1778475042000,-500.0,0.00010958,2]
[422018788,1778475042000,-500.0,0.00010958,2]
[422018785,1778475042000,-246.40322743,0.00010958,2]
[422018784,1778475042000,-500.0,0.00010958,2]
[422018782,1778475042000,-500.0,0.00010958,2]
[422018778,1778475042000,-577.98,0.00010958,2]
[422018780,1778475042000,-358.77271058,0.00010958,2]
[422018779,1778475042000,-500.0,0.00010958,2]
[422018777,1778475042000,-451.56382896,0.00010958,2]
[422018783,1778475042000,-261.13053838,0.00010958,2]
[422018802,1778475042000,-665.25462325,0.00011,2]
[422018807,1778475042000,-500.0,0.00011232,2]
[422018791,1778475042000,-576.65406376,0.00010958,2]
[422018800,1778475042000,-500.0,0.00010958,2]
[422018797,1778475042000,-594.08,0.00010958,2]
[422018793,1778475042000,-1468.99,0.00010958,2]
[422018801,1778475042000,-500.0,0.00010958,2]
[422018792,1778475042000,-500.0,0.00010958,2]
[422018795,1778475042000,-500.0,0.00010958,2]
[422018794,1778475042000,-1000.0,0.00010958,2]
[422018804,1778475042000,-155.0,0.00011231,2]
[422018805,1778475042000,-500.0,0.00011232,2]
[422018809,1778475042000,-500.0,0.00011232,2]
[422018803,1778475042000,-600.0,0.00011176,2]
[422018787,1778475042000,-500.0,0.00010958,2]
[422018808,1778475042000,-500.0,0.00011232,2]
[422018799,1778475042000,-500.0,0.00010958,2]
[422018775,1778475042000,-1250.32,0.00010958,2]
[422018761,1778475042000,-1337.8,0.00010958,2]
[422018776,1778475042000,-613.75,0.00010958,2]
[422018810,1778475042000,-500.0,0.00011232,2]
[422018747,1778475042000,-500.0,0.00010958,2]
[422018749,1778475042000,-500.0,0.00010958,2]
[422018748,1778475042000,-500.0,0.00010958,2]
[422018759,1778475042000,-500.0,0.00010958,2]
[422018750,1778475042000,-500.0,0.00010958,2]
[422018754,1778475042000,-500.0,0.00010958,2]
[422018760,1778475042000,-500.0,0.00010958,2]
[422018752,1778475042000,-500.0,0.00010958,2]
[422018751,1778475042000,-500.0,0.00010958,2]
[422018753,1778475042000,-1338.33,0.00010958,2]
[422018756,1778475042000,-500.0,0.00010958,2]
[422018758,1778475042000,-934.2,0.00010958,2]
[422018786,1778475042000,-754.26,0.00010958,2]
[422018755,1778475042000,-913.5,0.00010958,2]
[422018763,1778475042000,-1299.2,0.00010958,2]
[422018765,1778475042000,-500.0,0.00010958,2]
[422018767,1778475042000,-500.0,0.00010958,2]
[422018766,1778475042000,-500.0,0.00010958,2]
[422018764,1778475042000,-500.0,0.00010958,2]
[422018770,1778475042000,-655.7,0.00010958,2]
[422018762,1778475042000,-6424.02,0.00010958,2]
[422018773,1778475042000,-500.0,0.00010958,2]
[422018768,1778475042000,-490.58091421,0.00010958,2]
[422018771,1778475042000,-530.68,0.00010958,2]
[422018772,1778475042000,-185.32941447,0.00010958,2]
[422018774,1778475042000,-960.74,0.00010958,2]
[422018769,1778475042000,-500.0,0.00010958,2]
[422018757,1778475042000,-500.0,0.00010958,2]
[422018812,1778475042000,-500.0,0.00011232,2]
[422018868,1778475042000,-500.0,0.00011232,2]
[422018811,1778475042000,-500.0,0.00011232,2]
[422018857,1778475042000,-500.0,0.00011232,2]
[422018858,1778475042000,-913.5,0.00011232,2]